bitfinex-derivatives/quotes_BTCF0:USTF0_20241208
["timestamp","ask_amount","ask_price","bid_price","bid_amount"]
[1733652272720,0.27018042,99151.0,99150.0,0.01449658]
[1733652272916,0.27018042,99151.0,99150.0,0.37529658]
[1733652273113,0.00010663,99154.0,99153.0,0.045353]
[1733652273617,0.00010663,99154.0,99153.0,0.04546771]
[1733652274426,0.00010663,99154.0,99153.0,0.05483554]
[1733652274924,0.00010663,99154.0,99153.0,0.05883554]
[1733652275125,0.00010663,99154.0,99153.0,0.04983554]
[1733652275428,0.00010663,99154.0,99153.0,0.05246771]
[1733652278815,0.00010663,99154.0,99153.0,0.00711471]
[1733652279020,0.36090663,99154.0,99153.0,0.00711471]
[1733652279231,0.36090663,99154.0,99143.0,0.045357]
[1733652279526,0.045357,99144.0,99143.0,0.045357]
[1733652280326,0.3608,99146.0,99137.0,0.04536]
[1733652280327,0.045359,99138.0,99137.0,0.04536]
[1733652280526,0.406159,99138.0,99137.0,0.04536]
[1733652281630,0.406159,99138.0,99137.0,0.04547011]
[1733652282527,0.410159,99138.0,99137.0,0.04547011]
[1733652282828,0.410159,99138.0,99137.0,0.05051359]
[1733652283526,0.410159,99138.0,99137.0,0.0505136]
[1733652283718,0.410159,99138.0,99137.0,0.0051536]
[1733652283719,0.412159,99138.0,99137.0,0.0051536]
[1733652284633,0.412159,99138.0,99137.0,0.00830579]
[1733652285330,0.045364,99127.0,99126.0,0.045365]
[1733652285534,0.045364,99127.0,99126.0,0.05166952]
[1733652286031,0.0306,99137.0,99136.0,0.04536]
[1733652286328,0.0306,99137.0,99136.0,0.04543635]
[1733652286636,0.0306,99137.0,99136.0,0.05174082]
[1733652286831,0.0306,99137.0,99136.0,0.05174078]
[1733652287319,0.0326,99137.0,99136.0,0.05174078]
[1733652287524,0.0326,99137.0,99136.0,0.00638078]
[1733652287728,0.07796,99137.0,99136.0,0.00638078]
[1733652287923,0.08296,99137.0,99136.0,0.00638078]
[1733652288827,0.08296,99137.0,99136.0,0.05174078]
[1733652289326,0.08296,99137.0,99136.0,0.00638078]
[1733652290027,0.08296,99137.0,99136.0,7.635e-05]
[1733652290232,0.08296,99137.0,99136.0,0.00638081]
[1733652291732,0.44376,99137.0,99136.0,0.00638081]
[1733652293326,0.04536,99136.0,99123.0,0.00038276]
[1733652293526,0.04536,99136.0,99122.0,0.3608]
[1733652293527,0.045366,99123.0,99122.0,0.3608]
[1733652294229,0.045366,99123.0,99122.0,0.04575038]
[1733652294432,0.045366,99123.0,99122.0,0.04544076]
[1733652294729,0.045366,99123.0,99122.0,0.04582414]
[1733652294931,0.045366,99123.0,99122.0,0.04544076]
[1733652295131,0.045366,99123.0,99122.0,7.376e-05]
[1733652295527,0.045366,99123.0,99122.0,0.00511795]
[1733652296437,0.046366,99123.0,99122.0,0.00511795]
[1733652296942,0.049366,99123.0,99122.0,0.00511795]
[1733652297330,0.049366,99123.0,99122.0,0.00827064]
[1733652301333,0.049366,99123.0,99122.0,0.01457603]
[1733652302637,0.049366,99123.0,99122.0,7.376e-05]
[1733652302833,0.049366,99123.0,99122.0,0.01457581]
[1733652303439,0.004,99123.0,99122.0,0.05994281]
[1733652303832,0.004,99123.0,99122.0,0.09194281]
[1733652304330,0.12003905,99134.0,99122.0,0.04657581]
[1733652304539,0.0333,99147.0,99122.0,0.04657581]
[1733652304540,0.12003905,99135.0,99134.0,0.045361]
[1733652304728,0.12003905,99135.0,99134.0,0.05671043]
[1733652304935,0.12003905,99135.0,99134.0,0.08681043]
[1733652305134,0.12003905,99137.0,99136.0,0.04536]
[1733652305333,0.12003905,99137.0,99136.0,0.05481786]
[1733652305540,0.12003905,99137.0,99136.0,0.05986205]
[1733652305734,0.12003905,99141.0,99140.0,0.045358]
[1733652305943,0.12003905,99141.0,99140.0,0.05986005]
[1733652306354,0.12003905,99142.0,99141.0,0.045358]
[1733652306544,0.12033781,99143.0,99142.0,0.045357]
[1733652306835,0.12033781,99143.0,99142.0,0.07239532]
[1733652307436,0.12033781,99144.0,99142.0,0.02703832]
[1733652307635,0.12036282,99146.0,99145.0,0.045356]
[1733652307837,0.12036282,99146.0,99145.0,0.06608908]
[1733652308036,0.15014137,99152.0,99151.0,0.045353]
[1733652308237,0.00010663,99154.0,99152.0,0.045353]
[1733652308238,0.15014137,99153.0,99152.0,0.045353]
[1733652308440,0.00010663,99154.0,99152.0,0.05743832]
[1733652308647,0.00010663,99154.0,99153.0,0.0692377]
[1733652309041,0.00010663,99154.0,99153.0,0.07455114]
[1733652309742,0.00010663,99154.0,99153.0,0.06949908]
[1733652309943,0.00010663,99154.0,99153.0,0.07769215]
[1733652310637,0.00010663,99154.0,99153.0,0.07453953]
[1733652310842,0.00010663,99154.0,99153.0,0.08053953]
[1733652311650,0.15014137,99168.0,99167.0,0.045346]
[1733652311947,0.0051,99173.0,99167.0,0.045346]
[1733652311948,0.15014137,99172.0,99171.0,0.045344]
[1733652312142,0.04901113,99172.0,99171.0,0.06606834]
[1733652312343,0.15031515,99172.0,99171.0,0.06606834]
[1733652312534,0.15031515,99172.0,99171.0,0.07237071]
[1733652312737,0.15031515,99173.0,99171.0,0.07237071]
[1733652312934,0.15031515,99173.0,99171.0,0.045344]
[1733652313143,0.15031515,99173.0,99172.0,0.02916655]
[1733652313341,0.15031515,99174.0,99172.0,0.02916655]
[1733652313547,0.15031515,99174.0,99173.0,0.07234773]
[1733652314138,0.15031515,99175.0,99173.0,0.07450855]
[1733652314344,0.51111515,99176.0,99175.0,0.045341]
[1733652314538,0.51111515,99176.0,99175.0,0.05983562]
[1733652314737,0.3608,99176.0,99175.0,0.05983562]
[1733652315042,0.51111515,99176.0,99175.0,0.06199644]
[1733652315364,0.3608,99176.0,99175.0,0.06199644]
[1733652315544,0.3608,99176.0,99175.0,0.07449403]
[1733652315855,0.15031515,99177.0,99175.0,0.08249403]
[1733652316144,0.15031515,99178.0,99177.0,0.045342]
[1733652316340,0.00010345,99180.0,99177.0,0.05668562]
[1733652316341,0.15031515,99179.0,99177.0,0.05668562]
[1733652316647,0.00010345,99180.0,99179.0,0.045341]
[1733652316847,0.00010345,99180.0,99179.0,0.00504118]
[1733652317147,0.00010345,99180.0,99179.0,0.052543]
[1733652317349,0.15027096,99180.0,99179.0,0.052543]
[1733652317546,0.00010345,99180.0,99179.0,0.05569373]
[1733652317850,0.00010345,99180.0,99179.0,0.06818218]
[1733652318044,0.00010345,99180.0,99179.0,0.07618218]
[1733652318345,0.00010345,99180.0,99179.0,0.43698218]
[1733652318653,0.15026438,99180.0,99179.0,0.43698218]
[1733652319150,0.15026438,99180.0,99179.0,0.44598218]
[1733652319352,0.15026438,99180.0,99179.0,0.4460582]
[1733652319845,0.15026438,99180.0,99179.0,0.4384407]
[1733652320039,0.15026438,99180.0,99179.0,0.4400582]
[1733652320239,0.15026438,99180.0,99179.0,0.4310416]
[1733652320547,0.15026438,99180.0,99179.0,0.4350416]
[1733652320749,0.15026438,99180.0,99179.0,0.4330416]
[1733652320950,0.15026438,99180.0,99179.0,0.44304193]
[1733652321941,0.15026438,99180.0,99179.0,0.44004193]
[1733652322950,0.00010345,99180.0,99179.0,0.44004193]
[1733652323348,0.00010345,99180.0,99179.0,0.06104969]
[1733652324049,0.03200345,99180.0,99179.0,0.42184969]
[1733652324849,0.03200345,99180.0,99179.0,0.42815048]
[1733652325449,0.03200345,99180.0,99179.0,0.06735048]
[1733652325960,0.03200345,99180.0,99179.0,0.045341]
[1733652326648,0.08101149,99180.0,99179.0,0.045341]
[1733652326959,0.08101149,99180.0,99179.0,0.05048329]
[1733652328053,0.03200345,99180.0,99179.0,0.05048329]
[1733652328749,0.03200345,99180.0,99179.0,0.05363384]
[1733652329145,0.03200345,99180.0,99179.0,0.41443384]
[1733652329341,0.00010345,99180.0,99179.0,0.41443384]
[1733652329745,0.00010345,99180.0,99179.0,0.40939283]
[1733652329944,0.00010345,99180.0,99179.0,0.41443262]
[1733652330358,0.00010345,99180.0,99179.0,0.5152599]
[1733652331252,0.21020299,99196.0,99183.0,0.045339]
[1733652331448,0.21020299,99196.0,99195.0,0.045334]
[1733652331752,0.21020299,99196.0,99195.0,0.05352434]
[1733652331955,0.21020299,99196.0,99195.0,0.05390589]
[1733652332154,0.21020299,99196.0,99195.0,0.05352434]
[1733652332558,0.21120299,99196.0,99195.0,0.05352434]
[1733652332955,0.091154,99196.0,99195.0,0.05352434]
[1733652333746,0.091154,99196.0,99195.0,0.05982362]
[1733652334461,0.06847664,99196.0,99195.0,0.05982362]
[1733652336058,0.0314,99206.0,99195.0,0.05982362]
[1733652336251,0.0314,99206.0,99199.0,0.045332]
[1733652336451,0.0314,99206.0,99199.0,0.05982162]
[1733652337249,0.101,99200.0,99199.0,0.05982162]
[1733652338859,0.06950368,99200.0,99199.0,0.06926919]
[1733652339358,0.06850368,99200.0,99199.0,0.06926919]
[1733652340858,0.06850368,99200.0,99199.0,0.06105961]
[1733652342347,0.06850368,99200.0,99199.0,0.07050851]
[1733652342554,0.06850368,99200.0,99199.0,0.06105961]
[1733652343459,0.045332,99199.0,99186.0,0.3608]
[1733652343659,0.045332,99199.0,99187.0,0.00945026]
[1733652343952,0.045332,99199.0,99198.0,0.045333]
[1733652345554,0.09433876,99199.0,99198.0,0.045333]
[1733652346260,0.04900676,99199.0,99198.0,0.045333]
[1733652348269,0.04900676,99199.0,99198.0,0.406133]
[1733652348651,0.04900676,99199.0,99198.0,0.41558235]
[1733652348854,0.06850368,99200.0,99199.0,0.045332]
[1733652349061,0.06850368,99200.0,99199.0,0.05478135]
[1733652349457,0.04582624,99200.0,99199.0,0.05478135]
[1733652350769,0.04582624,99200.0,99199.0,0.064701]
[1733652351159,0.00011878,99214.0,99199.0,0.064701]
[1733652351160,0.00011878,99214.0,99213.0,0.045326]
[1733652351372,0.00011878,99214.0,99213.0,0.406126]
[1733652351560,0.15083719,99214.0,99213.0,0.22465117]
[1733652351766,0.00011878,99214.0,99213.0,0.22465117]
[1733652352056,0.00011878,99214.0,99213.0,0.24039762]
[1733652352466,0.18092576,99214.0,99213.0,0.24139762]
[1733652352665,0.00011878,99214.0,99213.0,0.24139762]
[1733652352865,0.00011878,99214.0,99213.0,0.27727575]
[1733652353175,0.15079768,99214.0,99213.0,0.28672321]
[1733652353363,0.00011878,99214.0,99213.0,0.28231432]
[1733652353559,0.15079768,99214.0,99213.0,0.28231432]
[1733652353981,0.10670978,99214.0,99213.0,0.29176172]
[1733652354168,0.18080698,99215.0,99214.0,0.045325]
[1733652354466,0.18080698,99222.0,99221.0,0.045322]
[1733652354670,0.18080698,99222.0,99221.0,0.05665915]
[1733652354860,0.18080698,99222.0,99221.0,0.06610643]
[1733652355467,0.14576649,99222.0,99221.0,0.06925555]
[1733652355665,0.0308,99227.0,99221.0,0.02393355]
[1733652355666,0.18079131,99223.0,99221.0,0.02393355]
[1733652355866,0.18079131,99222.0,99221.0,0.046322]
[1733652356069,0.18079131,99222.0,99221.0,0.08029312]
[1733652356472,0.0308,99227.0,99226.0,0.04532]
[1733652356772,0.1765069,99227.0,99226.0,0.05980595]
[1733652356973,0.1765069,99227.0,99226.0,0.00384128]
[1733652357365,0.1765069,99227.0,99226.0,0.04916128]
[1733652357869,0.19839388,99227.0,99226.0,0.04916128]
[1733652358074,0.24172533,99227.0,99226.0,0.04916128]
[1733652358270,0.17516812,99227.0,99226.0,0.04916128]
[1733652358474,0.19735364,99227.0,99226.0,0.05016128]
[1733652358669,0.17516812,99227.0,99226.0,0.05016128]
[1733652359663,0.22048712,99227.0,99226.0,0.05016128]
[1733652360066,0.28712109,99227.0,99226.0,0.05016128]
[1733652360375,0.43148921,99227.0,99226.0,0.05016128]
[1733652360677,0.22048712,99227.0,99226.0,0.04946931]
[1733652360968,0.17516812,99227.0,99226.0,0.04946928]
[1733652361176,0.24180209,99227.0,99226.0,0.04946928]
[1733652361375,0.38617021,99227.0,99226.0,0.04946928]
[1733652361967,0.17516812,99227.0,99226.0,0.04946928]
[1733652362472,0.3421629,99227.0,99226.0,0.0594717]
[1733652362667,0.17516812,99227.0,99226.0,0.0594717]
[1733652363279,0.34210351,99227.0,99226.0,0.0594717]
[1733652364271,0.63230344,99227.0,99226.0,0.0594717]
[1733652364474,0.39110096,99227.0,99226.0,0.0594717]
[1733652364669,0.22416557,99227.0,99226.0,0.0594717]
[1733652364877,0.43522396,99227.0,99226.0,0.0594717]
[1733652365070,0.41255741,99227.0,99226.0,0.06577028]
[1733652365768,0.26818929,99227.0,99226.0,0.06577028]
[1733652365973,0.05712133,99227.0,99226.0,0.06577028]
[1733652366475,0.20042404,99227.0,99226.0,0.06577028]
[1733652366975,0.05712133,99227.0,99226.0,0.07080891]
[1733652367673,0.20032013,99227.0,99226.0,0.07080848]
[1733652368271,0.24563913,99227.0,99226.0,0.01548606]
[1733652368477,0.20032013,99227.0,99226.0,0.0003827]
[1733652368777,0.04532,99226.0,99222.0,0.00038305]
[1733652368977,0.04532,99226.0,99205.0,0.01007627]
[1733652368978,0.35805838,99225.0,99205.0,0.01007627]
[1733652369166,0.35805838,99225.0,99196.0,0.406653]
[1733652369167,0.045328,99210.0,99209.0,0.045328]
[1733652369366,0.1885268,99210.0,99209.0,0.045328]
[1733652369565,0.23752285,99210.0,99209.0,0.045328]
[1733652369992,0.44855059,99210.0,99209.0,0.045328]
[1733652370470,0.23752285,99210.0,99209.0,0.045328]
[1733652370778,0.09432305,99210.0,99209.0,0.045328]
[1733652372380,0.09632305,99210.0,99209.0,0.045328]
[1733652372881,0.05099605,99210.0,99200.0,0.01977775]
[1733652373081,0.04533,99204.0,99203.0,0.04533]
[1733652373682,0.045333,99199.0,99198.0,0.045332]
[1733652374885,0.3608,99207.0,99206.0,0.045329]
[1733652375675,0.40980258,99207.0,99206.0,0.045329]
[1733652376283,0.41080258,99207.0,99206.0,0.045329]
[1733652376685,0.41080258,99207.0,99206.0,0.05162898]
[1733652377477,0.55378833,99207.0,99206.0,0.05162898]
[1733652377677,0.41080258,99207.0,99206.0,0.05162898]
[1733652377880,0.59174424,99207.0,99206.0,0.05162898]
[1733652378084,0.41080258,99207.0,99206.0,0.05162898]
[1733652378381,0.3618,99207.0,99206.0,0.05162898]
[1733652378588,0.3618,99207.0,99206.0,0.05666834]
[1733652378589,0.41079916,99207.0,99206.0,0.05666834]
[1733652378988,0.41079916,99207.0,99206.0,0.06678381]
[1733652379180,0.001,99207.0,99206.0,0.06678381]
[1733652379692,0.001,99207.0,99206.0,0.05544447]
[1733652379881,0.001,99207.0,99206.0,0.06174351]
[1733652380185,0.04900302,99207.0,99206.0,0.06678274]
[1733652380389,0.18095548,99210.0,99209.0,0.045328]
[1733652380585,0.18095548,99210.0,99209.0,0.05351675]
[1733652380988,0.04900302,99213.0,99209.0,0.05351675]
[1733652381178,0.18095548,99214.0,99213.0,0.045326]
[1733652381386,0.04532,99225.0,99215.0,0.045325]
[1733652381691,0.55276869,99216.0,99215.0,0.05981279]
[1733652381889,0.55276869,99216.0,99215.0,0.00452628]
[1733652381890,0.04900293,99216.0,99215.0,0.00452628]
[1733652382088,0.18103114,99218.0,99215.0,0.00452628]
[1733652382387,0.18103114,99223.0,99222.0,0.045322]
[1733652382590,0.19085933,99227.0,99217.0,0.045324]
[1733652382798,0.0489966,99226.0,99225.0,0.04532]
[1733652383095,0.21102774,99226.0,99217.0,0.045324]
[1733652383391,0.3608,99228.0,99218.0,0.045323]
[1733652383392,0.18107247,99220.0,99218.0,0.045323]
[1733652383690,0.04899642,99219.0,99218.0,0.045323]
[1733652383880,0.18107129,99221.0,99215.0,0.001]
[1733652384080,0.18107129,99220.0,99215.0,0.001]
[1733652384286,0.18107129,99220.0,99217.0,0.002]
[1733652384485,0.33147248,99219.0,99218.0,0.045323]
[1733652384890,0.04899642,99219.0,99218.0,0.045323]
[1733652385190,0.18108688,99221.0,99220.0,0.045322]
[1733652385381,0.18108782,99221.0,99216.0,0.045324]
[1733652385577,0.18108782,99221.0,99220.0,0.045322]
[1733652386083,0.04900167,99222.0,99219.0,0.045323]
[1733652386290,0.18983407,99221.0,99220.0,0.045322]
[1733652386694,0.04900167,99221.0,99220.0,0.046322]
[1733652387090,0.04900167,99226.0,99225.0,0.04532]
[1733652387288,0.14186974,99226.0,99225.0,0.04532]
[1733652388289,0.09431642,99226.0,99225.0,0.04532]
[1733652389794,0.09431642,99226.0,99225.0,0.04632]
[1733652389996,0.09431642,99226.0,99225.0,0.05261858]
[1733652391085,0.09431642,99226.0,99225.0,0.00729858]
[1733652391283,0.04532,99226.0,99225.0,0.00729858]
[1733652391989,0.04532,99226.0,99225.0,0.05765763]
[1733652392497,0.3608,99228.0,99227.0,0.045319]
[1733652392791,0.3608,99228.0,99227.0,0.05665663]
[1733652393496,0.71426378,99228.0,99227.0,0.05665663]
[1733652393692,0.75958278,99228.0,99227.0,0.05665663]
[1733652393892,0.75958278,99228.0,99227.0,0.00314922]
[1733652393893,0.59600729,99228.0,99227.0,0.00314922]
[1733652394795,0.80727925,99228.0,99227.0,0.00314922]
[1733652394996,0.76014261,99228.0,99227.0,0.00314922]
[1733652395184,0.80726092,99228.0,99227.0,0.00314922]
[1733652395698,0.406119,99228.0,99227.0,0.00314922]
[1733652396802,0.406119,99228.0,99227.0,0.00314942]
[1733652398615,0.406119,99228.0,99227.0,0.00029246]
[1733652398616,0.75888682,99228.0,99227.0,0.00029246]
[1733652399403,0.59568561,99228.0,99227.0,0.00029246]
[1733652399605,0.7599416,99228.0,99227.0,0.00029246]
[1733652400404,0.59568561,99228.0,99227.0,0.00029246]
[1733652400911,0.59568561,99228.0,99221.0,0.045322]
[1733652401106,0.045323,99219.0,99218.0,0.01022571]
[1733652401304,0.3608,99220.0,99216.0,0.045324]
[1733652401503,0.045324,99217.0,99216.0,0.045324]
[1733652401702,0.09432677,99217.0,99216.0,0.045324]
[1733652401898,0.23563406,99217.0,99216.0,0.045324]
[1733652402303,0.23454539,99217.0,99216.0,0.045324]
[1733652403003,0.045326,99213.0,99212.0,0.05540921]
[1733652403205,0.18554359,99213.0,99212.0,0.05540921]
[1733652403503,0.23454739,99213.0,99212.0,0.05540921]
[1733652403821,0.0943298,99213.0,99212.0,0.045326]
[1733652404111,0.23450317,99213.0,99212.0,0.045326]
[1733652404613,0.23450317,99213.0,99208.0,0.0311]
[1733652404614,0.19017717,99213.0,99208.0,0.0311]
[1733652404813,0.22641708,99209.0,99208.0,0.0311]
[1733652405205,0.0943308,99209.0,99208.0,0.0311]
[1733652405414,0.0943308,99209.0,99206.0,0.045328]
[1733652405415,0.045328,99207.0,99206.0,0.045328]
[1733652405710,0.0943318,99207.0,99206.0,0.045328]
[1733652407005,0.046328,99207.0,99206.0,0.05519914]
[1733652407220,0.22741649,99207.0,99206.0,0.07524268]
[1733652407522,0.23582159,99207.0,99206.0,0.07524268]
[1733652407808,0.27641773,99207.0,99206.0,0.07524268]
[1733652408915,0.23580543,99207.0,99206.0,0.07524268]
[1733652409101,0.2763981,99207.0,99206.0,0.07524268]
[1733652409300,0.2763981,99207.0,99206.0,0.05519914]
[1733652409505,0.2358266,99207.0,99206.0,0.05519914]
[1733652409701,0.27640804,99207.0,99206.0,0.00987114]
[1733652409907,0.23108004,99207.0,99206.0,0.045329]
[1733652410107,0.05000066,99207.0,99206.0,0.05666833]
[1733652410609,0.05000066,99207.0,99206.0,0.05981796]
[1733652411704,0.001,99207.0,99206.0,0.05981796]
[1733652411910,0.05000045,99207.0,99206.0,0.05981796]
[1733652416420,0.001,99207.0,99206.0,0.05981796]
[1733652416619,0.001,99207.0,99206.0,0.05981725]
[1733652416916,0.0500043,99207.0,99206.0,0.05981725]
[1733652417516,0.1810154,99209.0,99206.0,0.05981725]
[1733652417517,0.1810154,99209.0,99208.0,0.045328]
[1733652417717,0.15086833,99211.0,99208.0,0.02393656]
[1733652417913,0.15086833,99211.0,99210.0,0.045327]
[1733652418113,0.15086833,99211.0,99210.0,0.05981525]
[1733652418308,0.045321,99224.0,99219.0,0.045323]
[1733652418513,0.045321,99224.0,99219.0,0.05981125]
[1733652418923,0.50037116,99220.0,99219.0,0.05981125]
[1733652419317,0.54569316,99220.0,99219.0,0.05981125]
[1733652419520,0.406122,99220.0,99219.0,0.05981125]
[1733652420018,0.5464388,99220.0,99219.0,0.06107041]
[1733652420214,0.406122,99220.0,99219.0,0.05981019]
[1733652420412,0.406122,99220.0,99219.0,0.06081019]
[1733652420612,0.501007,99220.0,99219.0,0.06081019]
[1733652420827,0.50020543,99220.0,99219.0,0.06081019]
[1733652421212,0.50020543,99220.0,99219.0,0.07087426]
[1733652421810,0.3608,99220.0,99219.0,0.07087426]
[1733652422223,0.50116734,99220.0,99219.0,0.07087426]
[1733652422621,0.3608,99220.0,99219.0,0.07087426]
[1733652423411,0.50110917,99220.0,99219.0,0.07087426]
[1733652424117,0.3608,99220.0,99219.0,0.07087426]
[1733652425020,0.50029806,99220.0,99219.0,0.07087426]
[1733652425322,0.3608,99220.0,99219.0,0.07087426]
[1733652426029,0.50035562,99220.0,99219.0,0.07087426]
[1733652426321,0.3608,99220.0,99219.0,0.07087426]
[1733652426729,0.50121399,99220.0,99219.0,0.07087426]
[1733652428325,0.3608,99220.0,99219.0,0.07087426]
[1733652428522,0.68152515,99220.0,99219.0,0.07087426]
[1733652428720,0.50054375,99220.0,99219.0,0.07087426]
[1733652429126,0.50054375,99220.0,99219.0,0.06142609]
[1733652429319,0.64028402,99220.0,99219.0,0.06772459]
[1733652429638,0.50054027,99220.0,99219.0,0.0708739]
[1733652430325,0.13974027,99220.0,99219.0,0.0708739]
[1733652430531,0.045321,99224.0,99223.0,0.045321]
[1733652430723,0.17109482,99229.0,99223.0,0.01448683]
[1733652431022,0.34934764,99228.0,99227.0,0.045319]
[1733652431227,0.34934764,99228.0,99227.0,0.01212599]
[1733652431426,0.18601395,99228.0,99227.0,0.01212599]
[1733652432221,0.20600469,99228.0,99227.0,0.01212599]
[1733652432430,0.39570176,99228.0,99227.0,0.01212599]
[1733652432728,0.39570176,99228.0,99227.0,0.05035788]
[1733652433322,0.23501607,99228.0,99227.0,0.05035788]
[1733652433820,0.23501607,99228.0,99227.0,0.05135788]
[1733652433821,0.3964522,99228.0,99227.0,0.05135788]
[1733652434228,0.23501607,99228.0,99227.0,0.05135788]
[1733652435123,0.39635111,99228.0,99227.0,0.05135788]
[1733652435826,0.4461455,99228.0,99227.0,0.05135788]
[1733652436041,0.4461455,99228.0,99227.0,0.05135794]
[1733652436222,0.25577733,99228.0,99227.0,0.00603894]
[1733652436416,0.23501607,99228.0,99227.0,0.00603894]
[1733652436624,0.26801607,99228.0,99227.0,0.00603894]
[1733652436923,0.23961263,99228.0,99227.0,0.05135794]
[1733652437121,0.38030758,99228.0,99227.0,0.05135794]
[1733652437317,0.47917488,99228.0,99227.0,0.05135794]
[1733652437830,0.26801607,99228.0,99227.0,0.05135794]
[1733652438030,0.31975501,99228.0,99227.0,0.05135794]
[1733652438431,0.67066914,99228.0,99227.0,0.05135794]
[1733652439230,0.67066914,99228.0,99227.0,0.05765667]
[1733652439531,0.42923313,99228.0,99227.0,0.05765667]
[1733652439926,0.26801607,99228.0,99227.0,0.05765667]
[1733652440624,0.42816271,99228.0,99227.0,0.05765667]
[1733652441332,0.26801607,99228.0,99227.0,0.05765667]
[1733652441531,0.47899053,99228.0,99227.0,0.05765667]
[1733652441933,0.47899053,99228.0,99227.0,0.046319]
[1733652442129,0.52989663,99228.0,99227.0,0.05765672]
[1733652442337,0.23501607,99228.0,99227.0,0.05765672]
[1733652442638,0.18969707,99228.0,99227.0,0.05765672]
[1733652442824,0.04900212,99228.0,99227.0,0.05765672]
[1733652443130,0.04899625,99230.0,99229.0,0.045318]
[1733652443334,0.18737353,99230.0,99229.0,0.05980476]
[1733652443530,0.18841718,99230.0,99229.0,0.05980476]
[1733652444030,0.35029235,99230.0,99229.0,0.05980476]
[1733652444233,0.35029235,99230.0,99229.0,0.06180476]
[1733652444434,0.35029235,99230.0,99229.0,0.06480476]
[1733652444627,0.3482888,99230.0,99229.0,0.06480476]
[1733652444824,0.1874932,99230.0,99229.0,0.06480476]
[1733652445536,0.16482028,99230.0,99229.0,0.07513884]
[1733652446732,0.16482028,99230.0,99229.0,0.07513753]
[1733652447536,0.16482028,99230.0,99229.0,0.07313753]
[1733652448335,0.04899548,99230.0,99229.0,0.07313753]
[1733652449433,0.04899548,99230.0,99229.0,0.07013753]
[1733652449737,0.04899548,99230.0,99229.0,0.07113753]
[1733652451325,0.04899548,99234.0,99229.0,0.07113753]
[1733652451530,0.04899548,99234.0,99233.0,0.045316]
[1733652451728,0.04899548,99234.0,99233.0,0.05980145]
[1733652452538,0.04899548,99234.0,99233.0,0.06080145]
[1733652453441,0.04899548,99234.0,99220.0,0.4253852]
[1733652453442,0.39149366,99234.0,99220.0,0.4253852]
[1733652453734,0.21095497,99230.0,99221.0,0.01574502]
[1733652453939,0.21095497,99230.0,99220.0,0.4247852]
[1733652453940,0.21095497,99230.0,99222.0,0.00944701]
[1733652454149,0.21095497,99230.0,99223.0,0.00944701]
[1733652454342,0.37230551,99230.0,99224.0,0.00944701]
[1733652454531,0.04899548,99229.0,99228.0,0.045319]
[1733652454735,0.21095497,99232.0,99231.0,0.045317]
[1733652455245,0.3608,99235.0,99231.0,0.045317]
[1733652455437,0.3608,99235.0,99234.0,0.045316]
[1733652455839,9.269e-05,99236.0,99235.0,0.045316]
[1733652457233,0.15077127,99236.0,99235.0,0.045316]
[1733652457436,0.36165384,99236.0,99235.0,0.04542494]
[1733652457845,0.36165384,99236.0,99235.0,0.08698547]
[1733652458142,0.36165384,99236.0,99235.0,0.0964309]
[1733652458342,0.21088257,99236.0,99235.0,0.0964309]
[1733652458837,0.21088257,99236.0,99235.0,0.08698547]
[1733652459444,5.7e-07,99236.0,99235.0,0.08698547]
[1733652459640,0.001,99236.0,99235.0,0.19820082]
[1733652459943,0.18065264,99256.0,99253.0,0.045307]
[1733652460156,0.18065264,99256.0,99255.0,0.045306]
[1733652461046,0.24108457,99257.0,99246.0,0.0327]
[1733652461248,0.24108457,99257.0,99256.0,0.045306]
[1733652461545,0.24108457,99257.0,99256.0,0.05160208]
[1733652462638,8.869e-05,99259.0,99258.0,0.045305]
[1733652462837,8.869e-05,99259.0,99258.0,0.05160108]
[1733652463037,8.869e-05,99259.0,99258.0,0.0516012]
[1733652463637,8.869e-05,99259.0,99258.0,0.05663789]
[1733652463837,0.0690852,99280.0,99258.0,0.31133289]
[1733652463838,0.3608,99278.0,99258.0,0.31133289]
[1733652464038,0.3608,99297.0,99258.0,0.31133289]
[1733652464039,0.3608,99286.0,99270.0,0.3608]
[1733652464247,0.3608,99286.0,99281.0,0.00038011]
[1733652464449,0.3608,99286.0,99282.0,0.011713]
[1733652464652,0.3608,99286.0,99283.0,0.01133289]
[1733652464941,0.3608,99286.0,99282.0,0.00038011]
[1733652464942,0.3608,99286.0,99284.0,0.01133289]
[1733652465141,0.3608,99286.0,99285.0,0.01133289]
[1733652465550,0.3608,99286.0,99285.0,0.01448035]
[1733652466337,0.3608,99286.0,99285.0,0.01447815]
[1733652467145,0.3608,99286.0,99285.0,0.02455147]
[1733652467348,0.3608,99286.0,99285.0,0.01447815]
[1733652467943,0.3608,99286.0,99285.0,0.0081833]
[1733652469754,0.3608,99286.0,99285.0,0.0081843]
[1733652469755,0.406092,99286.0,99285.0,0.0081843]
[1733652471444,0.406092,99286.0,99272.0,0.045299]
[1733652471646,0.406098,99273.0,99272.0,0.045299]
[1733652471851,0.406098,99273.0,99272.0,0.05159469]
[1733652472646,0.406098,99273.0,99272.0,0.00629569]
[1733652472842,0.406098,99273.0,99272.0,0.00729569]
[1733652473040,0.406098,99273.0,99272.0,0.00729582]
[1733652473248,0.406098,99273.0,99272.0,0.001]
[1733652473451,0.406098,99273.0,99272.0,0.002]
[1733652473655,0.3608,99273.0,99258.0,0.00997179]
[1733652473851,0.3608,99273.0,99253.0,0.00037879]
[1733652473852,0.045306,99255.0,99253.0,0.00037879]
[1733652474054,0.045307,99253.0,99252.0,0.04568679]
[1733652474254,0.045307,99253.0,99252.0,0.05160439]
[1733652474658,0.045307,99253.0,99252.0,0.06160242]
[1733652474847,0.045307,99253.0,99252.0,0.00629639]
[1733652475178,0.406107,99253.0,99252.0,0.00629639]
[1733652475351,0.04531,99247.0,99246.0,0.04531]
[1733652475547,0.04531,99247.0,99246.0,0.05160734]
[1733652476149,0.04531,99247.0,99246.0,0.00629734]
[1733652476555,0.04531,99247.0,99244.0,0.00990115]
[1733652476556,0.001,99247.0,99244.0,0.00990115]
[1733652476863,0.001,99247.0,99240.0,0.045313]
[1733652476864,0.045313,99241.0,99240.0,0.045313]
[1733652477156,0.045313,99241.0,99240.0,0.05161042]
[1733652477554,0.045313,99241.0,99240.0,0.07179085]
[1733652477861,0.045313,99241.0,99240.0,0.0819073]
[1733652478053,0.045313,99241.0,99240.0,0.01641387]
[1733652478450,0.3608,99245.0,99244.0,0.045312]
[1733652478653,0.002,99247.0,99246.0,0.045311]
[1733652478854,0.002,99247.0,99246.0,0.05160842]
[1733652479257,0.3659,99267.0,99246.0,0.00629742]
[1733652479461,0.3659,99267.0,99245.0,0.0632]
[1733652479462,0.045304,99262.0,99258.0,0.045305]